bitfinex-derivatives/quotes_BTCF0:USTF0_20250528
["timestamp","ask_amount","ask_price","bid_price","bid_amount"]
[1748398711248,0.1838174,108750.0,108740.0,0.00013752]
[1748398711448,1.19872391,108750.0,108740.0,0.07013752]
[1748398711648,1.29068391,108750.0,108740.0,0.07013752]
[1748398711845,0.91068391,108750.0,108740.0,0.07013752]
[1748398712148,1.1225574,108750.0,108740.0,0.07013752]
[1748398712347,1.1245574,108750.0,108740.0,0.07013752]
[1748398712949,0.8045574,108750.0,108740.0,0.07013752]
[1748398713261,0.8045574,108750.0,108740.0,0.28557172]
[1748398713464,0.8045574,108750.0,108740.0,0.10173752]
[1748398713648,0.8055574,108750.0,108740.0,0.10173752]
[1748398714564,1.1978574,108750.0,108740.0,0.10173752]
[1748398715352,1.5278574,108750.0,108740.0,0.07013752]
[1748398716054,1.4249774,108750.0,108740.0,0.07013752]
[1748398716248,1.3178574,108750.0,108740.0,0.07013752]
[1748398716453,1.5678574,108750.0,108740.0,0.07013752]
[1748398717457,1.3078574,108750.0,108740.0,0.07013752]
[1748398717653,1.3078574,108750.0,108740.0,0.25397172]
[1748398717860,1.1978574,108750.0,108740.0,0.28667172]
[1748398718061,1.1978574,108750.0,108740.0,0.10283752]
[1748398720070,0.8370574,108750.0,108740.0,0.10283752]
[1748398720375,0.9770574,108750.0,108740.0,0.07013752]
[1748398721273,1.1680574,108750.0,108740.0,0.07013752]
[1748398721460,1.1680574,108750.0,108740.0,0.0905789]
[1748398722771,1.1690574,108750.0,108740.0,0.0915789]
[1748398723173,0.7361774,108750.0,108740.0,0.1236789]
[1748398723469,0.8390574,108750.0,108740.0,0.1236789]
[1748398724254,0.7361774,108750.0,108740.0,0.1236789]
[1748398724461,0.7470974,108750.0,108740.0,0.1236789]
[1748398724765,0.7470974,108750.0,108740.0,0.15700822]
[1748398725768,0.6542174,108750.0,108740.0,0.30754242]
[1748398725975,0.7470974,108750.0,108740.0,0.45926522]
[1748398726366,0.7470974,108750.0,108740.0,0.48646865]
[1748398726767,0.6442174,108750.0,108740.0,0.45926522]
[1748398727183,0.6442174,108750.0,108740.0,0.30263445]
[1748398727370,0.6442174,108750.0,108740.0,0.27543102]
[1748398727578,0.6442174,108750.0,108740.0,0.15700822]
[1748398727959,0.6442174,108750.0,108740.0,0.18421165]
[1748398730568,0.5496174,108750.0,108740.0,0.48646865]
[1748398730773,0.5496174,108750.0,108740.0,0.30263445]
[1748398730974,0.6133174,108750.0,108740.0,0.30263445]
[1748398731478,0.6133174,108750.0,108740.0,0.18421165]
[1748398732865,0.72156438,108750.0,108740.0,0.15091165]
[1748398733066,0.72156438,108750.0,108740.0,0.12372495]
[1748398733272,1.07156438,108750.0,108740.0,0.15093199]
[1748398733582,1.07156438,108750.0,108740.0,0.12384856]
[1748398734279,1.07156438,108750.0,108740.0,0.15105199]
[1748398737577,1.07156438,108750.0,108740.0,0.15107393]
[1748398738277,1.11447274,108750.0,108740.0,0.13056095]
[1748398739075,1.47527274,108750.0,108740.0,0.13056095]
[1748398739285,1.47527274,108750.0,108740.0,0.17136811]
[1748398740679,2.11996217,108750.0,108740.0,0.04816043]
[1748398740981,2.2060718,108750.0,108740.0,3e-08]
[1748398741182,0.1838341,108740.0,108730.0,0.09999971]
[1748398741394,1.26078717,108740.0,108730.0,0.13999971]
[1748398741575,1.26078717,108740.0,108730.0,0.09919255]
[1748398741892,1.26076368,108740.0,108730.0,0.09919255]
[1748398742074,1.26076368,108740.0,108730.0,0.09931255]
[1748398742582,1.26076368,108740.0,108730.0,0.07192]
[1748398742785,1.26176368,108740.0,108730.0,0.07292]
[1748398743086,1.26276368,108740.0,108730.0,0.07292]
[1748398743489,1.2054802,108740.0,108730.0,0.07292]
[1748398743881,1.26276368,108740.0,108730.0,0.07292]
[1748398744184,1.2054802,108740.0,108730.0,0.07292]
[1748398744888,1.26276368,108740.0,108730.0,0.07292]
[1748398745688,1.1545167,108740.0,108730.0,0.07292]
[1748398745891,1.26276368,108740.0,108730.0,0.07292]
[1748398746092,1.21982456,108740.0,108730.0,0.07292]
[1748398746293,1.2627191,108740.0,108730.0,0.07292]
[1748398746481,1.20543562,108740.0,108730.0,0.07292]
[1748398746675,1.35468711,108740.0,108730.0,1e-07]
[1748398746984,0.183851,108730.0,108720.0,0.00013752]
[1748398747185,1.07068202,108730.0,108720.0,0.01013752]
[1748398747382,1.50080202,108730.0,108720.0,0.01013752]
[1748398747686,1.59277802,108730.0,108720.0,2e-08]
[1748398747884,1.6500615,108730.0,108720.0,2e-08]
[1748398748087,0.1838849,108710.0,108700.0,0.042647]
[1748398748389,0.1838849,108710.0,108700.0,0.07183984]
[1748398748390,1.06569188,108710.0,108700.0,0.07183984]
[1748398748691,1.13019188,108710.0,108700.0,0.07183984]
[1748398749388,1.13019188,108710.0,108700.0,0.07195984]
[1748398749719,1.13019188,108710.0,108690.0,2e-08]
[1748398749720,0.1839017,108700.0,108690.0,2e-08]
[1748398749883,0.1839017,108700.0,108670.0,0.16692394]
[1748398749884,0.1839356,108680.0,108670.0,0.03524067]
[1748398750186,0.1839694,108660.0,108650.0,0.00092034]
[1748398750396,0.5039694,108660.0,108650.0,0.15202034]
[1748398750584,0.5039694,108660.0,108650.0,0.15214034]
[1748398750585,0.6081694,108660.0,108650.0,0.15214034]
[1748398750777,0.6081694,108660.0,108650.0,0.15202034]
[1748398751186,0.6081694,108660.0,108650.0,0.44437372]
[1748398751384,0.2473694,108660.0,108650.0,0.44437372]
[1748398751587,0.2168694,108660.0,108650.0,0.78437372]
[1748398751978,0.2168694,108660.0,108650.0,0.78937372]
[1748398751979,0.2178694,108660.0,108650.0,0.78937372]
[1748398752181,0.2178694,108660.0,108650.0,0.44937372]
[1748398752582,0.2178694,108660.0,108650.0,0.46310694]
[1748398753091,0.2188694,108660.0,108650.0,0.85850694]
[1748398753587,0.1859694,108660.0,108650.0,1.19850694]
[1748398763286,0.002,108660.0,108650.0,1.19850694]
[1748398763686,0.002,108660.0,108650.0,1.40939392]
[1748398767703,0.002,108660.0,108650.0,1.04859392]
[1748398767908,0.03163752,108670.0,108650.0,1.58620752]
[1748398768202,0.00013752,108670.0,108660.0,1.19142306]
[1748398768392,0.00013752,108670.0,108660.0,1.76532306]
[1748398769194,0.00113752,108670.0,108660.0,1.76532306]
[1748398769902,0.00213752,108670.0,108660.0,1.76532306]
[1748398770101,0.00113752,108670.0,108660.0,1.76932306]
[1748398770405,0.00213752,108670.0,108660.0,1.77332306]
[1748398770593,0.00213752,108670.0,108660.0,1.81416696]
[1748398770789,0.00213752,108670.0,108660.0,1.84141012]
[1748398770995,0.18608972,108670.0,108660.0,1.41125012]
[1748398771195,0.21848972,108670.0,108660.0,1.84141012]
[1748398773503,0.21848972,108670.0,108660.0,1.81412696]
[1748398775704,0.21848972,108670.0,108660.0,1.82781935]
[1748398776604,0.21848972,108670.0,108660.0,1.42735629]
[1748398776907,0.21848972,108670.0,108660.0,1.82781935]
[1748398778707,0.00213752,108670.0,108660.0,1.82781935]
[1748398778905,0.0328,108680.0,108660.0,1.64385025]
[1748398779097,0.2167353,108680.0,108670.0,0.81033749]
[1748398779297,0.2167353,108680.0,108670.0,1.34123749]
[1748398780306,0.2167353,108680.0,108670.0,1.34423749]
[1748398780607,0.2177353,108680.0,108670.0,1.34423749]
[1748398781311,0.2177353,108680.0,108670.0,1.3534087]
[1748398781811,0.2177353,108680.0,108670.0,1.3564087]
[1748398782111,0.2177353,108680.0,108670.0,1.34723749]
[1748398784017,0.2177353,108680.0,108670.0,1.35632331]
[1748398784211,0.2492353,108680.0,108670.0,1.35632331]
[1748398785707,0.0338,108680.0,108670.0,1.35632331]
[1748398785902,0.0338,108680.0,108670.0,1.3016251]
[1748398786307,0.0338,108680.0,108670.0,1.37010313]
[1748398786507,0.0338,108680.0,108670.0,1.49925176]
[1748398786508,0.001,108680.0,108670.0,1.49925176]
[1748398786708,0.001,108680.0,108670.0,1.64956916]
[1748398786908,0.001,108680.0,108670.0,1.45948281]
[1748398787111,0.001,108680.0,108670.0,1.65974579]
[1748398787414,0.001,108680.0,108670.0,1.63337256]
[1748398787722,0.001,108680.0,108670.0,1.55149881]
[1748398788018,0.001,108680.0,108670.0,1.48302078]
[1748398788218,0.0315,108680.0,108670.0,1.48302078]
[1748398788408,0.0315,108680.0,108670.0,1.55137568]
[1748398789012,0.0315,108680.0,108670.0,1.63323861]
[1748398790510,0.0315,108680.0,108670.0,1.54122261]
[1748398792018,0.0315,108680.0,108670.0,1.43858261]
[1748398792242,0.2154353,108680.0,108670.0,1.31688377]
[1748398792521,0.2461353,108680.0,108670.0,1.74693443]
[1748398792817,0.2773353,108680.0,108670.0,1.74681443]
[1748398793019,0.2773353,108680.0,108670.0,1.28619443]
[1748398793214,0.2773353,108680.0,108670.0,1.74342221]
[1748398793415,0.2773353,108680.0,108670.0,1.7914777]
[1748398793611,0.2773353,108680.0,108670.0,1.79147835]
[1748398795322,0.2773353,108680.0,108670.0,1.85983325]
[1748398795515,0.2773353,108680.0,108670.0,1.89263325]
[1748398796014,0.0934,108680.0,108670.0,1.92403325]
[1748398796827,0.0934,108680.0,108670.0,1.85567835]
[1748398797023,0.0934,108680.0,108670.0,1.92403325]
[1748398797920,0.0934,108680.0,108670.0,1.81587251]
[1748398798114,0.0934,108680.0,108670.0,1.92411949]
[1748398798314,0.2773353,108680.0,108670.0,1.87597711]
[1748398799319,0.0934,108680.0,108670.0,1.72575928]
[1748398799520,0.0934,108680.0,108670.0,1.79411418]
[1748398799829,0.2773353,108680.0,108670.0,1.72575928]
[1748398800927,0.2773353,108680.0,108670.0,1.1875923]
[1748398801236,0.0934,108680.0,108670.0,1.67217364]
[1748398801417,0.0934,108680.0,108670.0,1.78042062]
[1748398801618,0.0934,108680.0,108670.0,1.72571928]
[1748398801928,0.2773354,108680.0,108670.0,1.72571928]
[1748398802135,0.0934,108680.0,108670.0,1.72571928]
[1748398802428,0.2773354,108680.0,108670.0,1.72571928]
[1748398804727,0.2773354,108680.0,108670.0,1.29583928]
[1748398805033,0.2773354,108680.0,108670.0,1.78040743]
[1748398806130,0.2773354,108680.0,108670.0,1.35056743]
[1748398806433,0.2773354,108680.0,108670.0,1.71608743]
[1748398806628,0.2773354,108680.0,108670.0,1.71620743]
[1748398807035,0.2773354,108680.0,108670.0,1.74890743]
[1748398808332,0.2773354,108680.0,108670.0,1.78050743]
[1748398809732,0.2773354,108680.0,108670.0,1.72577928]
[1748398811240,0.2773354,108680.0,108670.0,1.80764221]
[1748398812739,0.2773353,108680.0,108670.0,1.80764221]
[1748398814134,0.2773353,108680.0,108670.0,1.69939523]
[1748398814436,0.2773353,108680.0,108670.0,1.37780221]
[1748398814740,0.2773353,108680.0,108670.0,1.71616717]
[1748398814941,0.2773353,108680.0,108670.0,1.71604717]
[1748398815138,0.2773353,108680.0,108670.0,1.71616717]
[1748398815335,0.2773353,108680.0,108670.0,1.18388717]
[1748398815635,0.2773353,108680.0,108670.0,1.71616717]
[1748398815936,1.09638228,108680.0,108670.0,0.23088789]
[1748398816137,1.23129261,108680.0,108670.0,0.12612]
[1748398816439,1.48129261,108680.0,108670.0,0.17392438]
[1748398816742,1.48129261,108680.0,108670.0,0.14665914]
[1748398817129,1.23129261,108680.0,108670.0,0.14665914]
[1748398817535,1.03102963,108680.0,108670.0,0.43885842]
[1748398817736,0.8181353,108680.0,108670.0,0.43885842]
[1748398817936,0.8181353,108680.0,108670.0,0.44570452]
[1748398818137,0.2773353,108680.0,108670.0,0.87546452]
[1748398818445,0.2773353,108680.0,108670.0,1.33385319]
[1748398820241,0.2773353,108680.0,108670.0,0.64430408]
[1748398820437,0.2773353,108680.0,108670.0,0.78706247]
[1748398820438,1.11638228,108680.0,108670.0,0.78706247]
[1748398820745,1.0081353,108680.0,108670.0,0.78718247]
[1748398820949,1.0081353,108680.0,108670.0,0.17335017]
[1748398821243,1.20839828,108680.0,108670.0,0.17386115]
[1748398821646,1.20839828,108680.0,108670.0,0.17398115]
[1748398821836,1.20839828,108680.0,108670.0,0.17386115]
[1748398822140,1.20839828,108680.0,108670.0,0.17398115]
[1748398823246,1.20839828,108680.0,108670.0,0.17397543]
[1748398824241,1.20839828,108680.0,108670.0,0.18397543]
[1748398824444,1.20839828,108680.0,108670.0,0.17397543]
[1748398824641,1.21878228,108680.0,108670.0,0.17397543]
[1748398824840,1.21878228,108680.0,108670.0,0.14662526]
[1748398825348,1.1105353,108680.0,108670.0,0.14662526]
[1748398825548,1.21878228,108680.0,108670.0,0.14662526]
[1748398826446,1.31079828,108680.0,108670.0,0.14662526]
[1748398827138,1.74055828,108680.0,108670.0,0.14662526]
[1748398827336,1.74055828,108680.0,108670.0,0.096709]
[1748398827337,1.99055828,108680.0,108670.0,0.096709]
[1748398827539,1.99055828,108680.0,108670.0,0.096829]
[1748398827844,1.99055828,108680.0,108670.0,0.096709]
[1748398828244,2.35135828,108680.0,108670.0,0.096709]
[1748398828547,2.35135828,108680.0,108670.0,0.096829]
[1748398830252,2.10135828,108680.0,108670.0,0.096829]
[1748398831843,0.1839692,108660.0,108650.0,0.44914809]
[1748398832043,0.1839692,108660.0,108650.0,0.36540728]
[1748398832241,0.2897692,108660.0,108650.0,0.36540728]
[1748398832440,0.2897692,108660.0,108650.0,0.14842408]
[1748398832641,0.2897692,108660.0,108650.0,0.33241018]
[1748398832954,0.2917692,108660.0,108650.0,0.34341018]
[1748398833245,0.2917692,108660.0,108650.0,0.37381018]
[1748398833450,0.2917692,108660.0,108650.0,0.18982408]
[1748398833645,0.2917692,108660.0,108650.0,0.37381018]
[1748398834048,0.2907692,108660.0,108650.0,0.36881018]
[1748398834349,0.2917692,108660.0,108650.0,0.37181018]
[1748398834650,0.2917692,108660.0,108650.0,0.36781018]
[1748398834651,0.2907692,108660.0,108650.0,0.36781018]
[1748398835450,0.2907692,108660.0,108650.0,0.39901018]
[1748398835748,0.66073361,108660.0,108650.0,0.39901018]
[1748398836153,0.76898059,108660.0,108650.0,0.15342408]
[1748398836362,1.11898059,108660.0,108650.0,0.11235017]
[1748398837253,1.11898059,108660.0,108650.0,0.14485017]
[1748398837650,1.01073361,108660.0,108650.0,0.14485017]
[1748398840859,1.01073361,108660.0,108650.0,0.17625017]
[1748398841252,1.11898059,108660.0,108650.0,0.17625017]
[1748398842269,0.77898059,108660.0,108650.0,0.36023637]
[1748398842450,0.67073361,108660.0,108650.0,0.36023637]
[1748398845664,0.67073361,108660.0,108650.0,0.40131028]
[1748398847655,0.97073361,108660.0,108650.0,0.40131028]
[1748398850269,0.97073361,108660.0,108650.0,0.21732408]
[1748398850459,1.07898059,108660.0,108650.0,0.21732408]
[1748398851058,0.97073361,108660.0,108650.0,0.21732408]
[1748398851458,0.97073361,108660.0,108650.0,0.1662279]
[1748398851459,1.07309361,108660.0,108650.0,0.1662279]
[1748398851752,1.33241092,108660.0,108650.0,0.12515399]
[1748398851960,1.11591696,108660.0,108650.0,0.12527399]
[1748398852165,1.22416394,108660.0,108650.0,0.12527399]
[1748398852352,1.22416394,108660.0,108650.0,0.12534952]
[1748398852969,1.22422367,108660.0,108650.0,0.12522952]
[1748398853269,1.14597697,108660.0,108650.0,0.12534952]
[1748398853458,1.14597697,108660.0,108650.0,0.18754698]
[1748398854262,1.14597697,108660.0,108650.0,0.1875453]
[1748398855055,1.14597697,108660.0,108650.0,0.18754656]
[1748398855367,1.14597697,108660.0,108650.0,0.18754657]
[1748398855865,1.25422395,108660.0,108650.0,0.17467017]
[1748398856263,1.25422395,108660.0,108650.0,0.18754656]
[1748398856463,1.25422395,108660.0,108650.0,0.17467017]
[1748398857163,1.14597697,108660.0,108650.0,0.17467017]
[1748398857369,1.25424213,108660.0,108650.0,0.17467017]
[1748398861662,1.25424261,108660.0,108650.0,0.17467017]
[1748398864675,0.90599563,108660.0,108650.0,0.35865627]
[1748398865467,0.90599563,108660.0,108650.0,0.17467017]
[1748398865771,0.90599563,108660.0,108650.0,0.35865627]
[1748398865969,0.90599827,108660.0,108650.0,0.35865627]
[1748398866364,0.90599827,108660.0,108650.0,0.35865617]
[1748398866666,0.90599827,108660.0,108650.0,0.17467017]
[1748398868266,0.90599827,108660.0,108650.0,0.35865617]
[1748398868675,0.90599827,108660.0,108650.0,0.17467017]
[1748398868971,0.1849692,108660.0,108650.0,1.47118679]
[1748398869176,0.1849692,108660.0,108650.0,1.53247288]
[1748398869476,0.1849692,108660.0,108650.0,1.58724077]
[1748398871478,0.2165692,108660.0,108650.0,1.58724077]
[1748398875167,0.1849692,108660.0,108650.0,1.58724077]
[1748398875567,0.1849692,108660.0,108650.0,1.47899379]
[1748398875766,0.1849692,108660.0,108650.0,1.58724077]
[1748398877473,0.1849692,108660.0,108650.0,1.63540624]
[1748398877674,0.1849692,108660.0,108650.0,1.71722917]
[1748398877971,0.2163692,108660.0,108650.0,1.71722917]
[1748398878971,0.2163692,108660.0,108650.0,1.6690637]
[1748398879279,0.68541618,108660.0,108650.0,0.53210073]
[1748398879573,0.79971618,108660.0,108650.0,0.15348473]
[1748398879885,1.10971618,108660.0,108650.0,0.15336473]
[1748398880173,1.10971618,108660.0,108650.0,0.11246386]
[1748398880366,1.10971618,108660.0,108650.0,0.11234386]
[1748398880567,1.10971618,108660.0,108650.0,0.11246386]
[1748398881380,1.57876316,108660.0,108650.0,0.0553219]
[1748398881773,1.57876316,108660.0,108650.0,0.0552019]
[1748398881975,1.62165656,108660.0,108650.0,0.0552019]
[1748398882184,1.62165656,108660.0,108650.0,0.0553219]
[1748398882482,1.51340958,108660.0,108650.0,0.0553219]
[1748398882780,1.51333706,108660.0,108650.0,0.0553219]
[1748398883170,1.62158404,108660.0,108650.0,0.0553219]
[1748398883692,1.57876316,108660.0,108650.0,0.0553219]
[1748398884385,1.62158404,108660.0,108650.0,0.0553219]
[1748398884570,1.40509008,108660.0,108650.0,0.0553219]
[1748398884884,1.51333706,108660.0,108650.0,0.0552019]
[1748398885079,1.51333706,108660.0,108650.0,0.0553219]
[1748398886676,1.47051618,108660.0,108650.0,0.0553219]
[1748398886876,1.51330041,108660.0,108650.0,0.0553219]
[1748398890490,1.40505343,108660.0,108650.0,0.0553219]
[1748398890671,1.51330041,108660.0,108650.0,0.0553219]
[1748398890875,1.55607713,108660.0,108650.0,0.0553219]
[1748398891071,1.5132929,108660.0,108650.0,0.0553219]
[1748398891278,1.5132929,108660.0,108650.0,0.0864219]
[1748398891488,1.5132929,108660.0,108650.0,0.0553219]
[1748398891688,1.40504592,108660.0,108650.0,0.0553219]
[1748398891884,1.3622692,108660.0,108650.0,0.0553219]
[1748398892079,1.3622692,108660.0,108650.0,0.1186219]
[1748398895693,1.3622692,108660.0,108650.0,0.13912495]
[1748398899489,1.3622692,108660.0,108650.0,0.13912281]
[1748398902688,1.3612692,108660.0,108650.0,0.13612281]
[1748398902899,1.3632692,108660.0,108650.0,0.13712281]
[1748398903696,1.3642692,108660.0,108650.0,0.1146219]
[1748398903891,1.3642692,108660.0,108650.0,0.13513197]
[1748398905894,1.3642692,108660.0,108650.0,0.1146219]
[1748398906095,1.3642692,108660.0,108650.0,0.13513949]
[1748398906490,1.3642692,108660.0,108650.0,0.16248335]
[1748398907491,1.40709339,108660.0,108650.0,0.16248335]
[1748398908104,1.51536921,108660.0,108650.0,0.16249878]
[1748398909605,1.51536921,108660.0,108650.0,0.14196576]
[1748398910699,1.40712223,108660.0,108650.0,0.14196576]
[1748398911798,1.40715822,108660.0,108650.0,0.14196576]
[1748398914700,1.40715822,108660.0,108650.0,0.14184576]
[1748398915104,1.40715822,108660.0,108650.0,0.43407884]
[1748398916504,1.40715822,108660.0,108650.0,0.32583186]
[1748398918604,1.40715822,108660.0,108650.0,0.36685273]
[1748398921098,1.40718185,108660.0,108650.0,0.36685273]
[1748398922703,1.40718185,108660.0,108650.0,0.18286663]
[1748398922906,1.51542883,108660.0,108650.0,0.18286663]
[1748398924102,1.57271231,108660.0,108650.0,0.11956663]
[1748398924308,1.57271231,108660.0,108650.0,0.07866576]
[1748398924710,1.46446533,108660.0,108650.0,0.07866576]
[1748398924900,1.57271231,108660.0,108650.0,0.07866576]
[1748398925298,1.57272572,108660.0,108650.0,0.07866576]
[1748398926003,1.46447874,108660.0,108650.0,0.07866576]
[1748398926410,1.46447874,108660.0,108650.0,0.14366576]
[1748398927113,1.46447874,108660.0,108650.0,0.47691961]
[1748398927510,1.40719526,108660.0,108650.0,0.40137263]
[1748398928904,1.18719526,108660.0,108650.0,0.44125488]
[1748398929104,0.04592606,108660.0,108650.0,1.19307575]
[1748398929304,0.003,108660.0,108650.0,1.20682277]
[1748398929505,0.1869691,108660.0,108650.0,1.30950277]
[1748398929713,0.1869691,108660.0,108650.0,1.34936979]
[1748398929909,0.6442691,108660.0,108650.0,1.02013498]
[1748398930613,0.6442691,108660.0,108650.0,0.1954219]
[1748398930614,0.9742691,108660.0,108650.0,0.1954219]
[1748398930916,1.08251608,108660.0,108650.0,0.4810019]
[1748398931215,1.08251608,108660.0,108650.0,0.52220591]
[1748398931414,1.08251608,108660.0,108650.0,0.09240591]
[1748398932409,1.08251608,108660.0,108650.0,0.09228591]
[1748398932604,1.08251608,108660.0,108650.0,0.11979325]
[1748398933019,1.08251608,108660.0,108650.0,0.30377935]
[1748398934212,0.9742691,108660.0,108650.0,0.30377935]
[1748398934808,0.9742691,108660.0,108650.0,0.11979325]
[1748398935709,1.19076306,108660.0,108650.0,0.07870924]
[1748398936004,1.12539537,108660.0,108650.0,0.09924868]
[1748398937617,1.12539177,108660.0,108650.0,0.09924857]
[1748398938812,1.12539251,108660.0,108650.0,0.09924848]
[1748398941718,1.12539191,108660.0,108650.0,0.09924815]
[1748398942230,1.23363889,108660.0,108650.0,0.04365941]
[1748398942413,1.29092237,108660.0,108650.0,0.0230005]
[1748398942613,1.24804654,108660.0,108650.0,0.0230005]
[1748398942924,1.33415617,108660.0,108650.0,0.0230005]
[1748398943225,1.24804654,108660.0,108650.0,0.0231205]
[1748398943415,1.78024654,108660.0,108650.0,0.0231205]
[1748398944416,1.90110869,108660.0,108650.0,1e-08]
[1748398944622,1.80907269,108660.0,108650.0,1e-08]
[1748398945126,0.1839861,108650.0,108640.0,0.00197838]
[1748398945312,1.14540414,108650.0,108640.0,0.02197838]
[1748398945519,1.17680414,108650.0,108640.0,0.02197838]
[1748398946115,1.06855716,108650.0,108640.0,0.02197838]
[1748398946314,1.17680414,108650.0,108640.0,0.02197838]
[1748398946519,1.17680414,108650.0,108640.0,0.02297838]
[1748398946821,0.0460018,108640.0,108620.0,0.02738734]
[1748398947123,1.84487955,108630.0,108620.0,0.01285642]
[1748398947424,2.27170202,108630.0,108620.0,2e-08]
[1748398947615,0.1840539,108610.0,108600.0,0.14854795]
[1748398947819,1.44374088,108610.0,108600.0,0.29994795]
[1748398948019,1.50811152,108610.0,108600.0,0.33064795]
[1748398948422,1.38986454,108610.0,108600.0,0.2725723]
[1748398948620,1.48811152,108610.0,108600.0,0.2725723]
[1748398949021,1.48811152,108610.0,108600.0,0.3055723]
[1748398949327,0.79747152,108610.0,108600.0,0.3055723]
[1748398949526,1.11974454,108610.0,108600.0,0.3055723]
[1748398949731,1.12074454,108610.0,108600.0,0.3364723]
[1748398950122,1.35074454,108610.0,108600.0,0.3364723]
[1748398950324,1.35978771,108610.0,108600.0,0.3364723]
[1748398951231,1.36078771,108610.0,108600.0,0.3404723]
[1748398952929,1.46903469,108610.0,108600.0,0.3404723]
[1748398953120,1.03851469,108610.0,108600.0,0.3404723]
[1748398953316,1.47047469,108610.0,108600.0,0.3404723]
[1748398955919,1.47047469,108610.0,108600.0,0.19084587]
[1748398956316,1.47047469,108610.0,108600.0,0.12412]
[1748398957119,1.47047469,108610.0,108600.0,0.15712]
[1748398958517,1.03851469,108610.0,108600.0,0.15712]
[1748398958719,1.47099469,108610.0,108600.0,0.15712]
[1748398959019,1.36274771,108610.0,108600.0,0.15712]
[1748398959220,1.36274771,108610.0,108600.0,0.19022]
[1748398961817,1.47075469,108610.0,108600.0,0.19022]
[1748398962218,1.36250771,108610.0,108600.0,0.19022]
[1748398962420,1.47075469,108610.0,108600.0,0.3742908]
[1748398962620,1.47075469,108610.0,108600.0,0.19022]
[1748398963922,0.93026771,108610.0,108600.0,0.48253768]
[1748398964123,0.62026771,108610.0,108600.0,0.48253768]
[1748398964325,1.05226771,108610.0,108600.0,0.48253768]
[1748398964525,1.09226771,108610.0,108600.0,0.3742907]
[1748398965023,1.36226771,108610.0,108600.0,0.3742907]
[1748398966529,0.93026771,108610.0,108600.0,0.3742908]
[1748398968931,0.00237064,108610.0,108600.0,1.27158476]
[1748398969128,0.00237064,108610.0,108600.0,1.93912588]
[1748398969333,0.18642454,108610.0,108600.0,1.86087265]
[1748398969534,0.18642454,108610.0,108600.0,1.84470167]
[1748398971533,0.18642454,108610.0,108600.0,1.73645469]
[1748398971736,0.18642454,108610.0,108600.0,1.84470167]
[1748398972740,0.18642454,108610.0,108600.0,1.75262567]
[1748398973139,0.21588622,108620.0,108610.0,0.1840539]
[1748398973140,0.00013752,108620.0,108610.0,0.1840539]
[1748398973436,0.00013752,108620.0,108610.0,1.35752662]
[1748398973740,0.00013752,108620.0,108610.0,1.76797724]
[1748398974332,0.18439174,108630.0,108620.0,0.1840369]
[1748398974541,0.18439174,108630.0,108620.0,1.8169369]
[1748398974734,0.18439174,108630.0,108620.0,1.9089969]
[1748398975639,0.18539174,108630.0,108620.0,1.9099969]
[1748398976041,0.18539174,108630.0,108620.0,1.9119969]
[1748398976236,0.18539174,108630.0,108620.0,1.85730388]
[1748398977233,0.18539174,108630.0,108620.0,1.8982922]
[1748398977835,0.18539174,108630.0,108620.0,1.85730388]
[1748398978235,0.18539174,108630.0,108620.0,1.89828486]
[1748398981837,0.21579174,108630.0,108620.0,1.89828486]
[1748398983552,0.21579174,108630.0,108620.0,1.89756486]
[1748398984349,0.24799174,108630.0,108620.0,1.89756486]
[1748398984840,0.24799174,108630.0,108620.0,1.69717788]
[1748398985035,0.24799174,108630.0,108620.0,1.80538486]
[1748398985749,0.24799174,108630.0,108620.0,1.80550486]
[1748398986636,0.24799174,108630.0,108620.0,1.69725788]
[1748398986838,0.24799174,108630.0,108620.0,1.80550486]
[1748398987541,0.24799174,108630.0,108620.0,1.27138486]
[1748398987846,0.24799174,108630.0,108620.0,1.7999889]
[1748398988443,0.24799174,108630.0,108620.0,1.77268486]
[1748398988638,0.24799174,108630.0,108620.0,1.80418486]
[1748398988838,0.03177064,108630.0,108620.0,1.80418486]
[1748398989043,0.00037064,108630.0,108620.0,2.00349184]
[1748398989344,0.00037064,108630.0,108620.0,2.14729418]
[1748398989345,0.00237064,108630.0,108620.0,2.14729418]
[1748398989543,0.00337064,108630.0,108620.0,2.14529418]
[1748398990948,0.00237064,108630.0,108620.0,2.14629418]
[1748398991456,0.00229064,108630.0,108620.0,2.14829418]
[1748398991747,0.00229064,108630.0,108620.0,2.14829559]
[1748398991954,0.00290092,108640.0,108630.0,0.18402]
[1748398992136,0.00290092,108640.0,108630.0,1.56009282]
[1748398992137,0.00253028,108640.0,108630.0,1.56009282]
[1748398992338,0.00253028,108640.0,108630.0,1.62844772]
[1748398992539,0.25046367,108660.0,108630.0,1.49042912]
[1748398992846,0.28236367,108660.0,108650.0,0.6939873]
[1748398993048,0.28236367,108660.0,108650.0,1.14435794]
[1748398993350,0.06578137,108660.0,108650.0,1.23895794]
[1748398993552,0.2299322,108680.0,108650.0,1.62109349]
[1748398993742,0.2950322,108680.0,108670.0,0.72121411]
[1748398993944,0.2950322,108680.0,108670.0,1.16392223]
[1748398994246,0.2950322,108680.0,108670.0,1.59014269]
[1748398994451,0.2950322,108680.0,108670.0,1.61743857]
[1748398994849,0.3272322,108680.0,108670.0,1.61743857]
[1748398995150,0.3272322,108680.0,108670.0,1.61855857]
[1748398995151,0.3292322,108680.0,108670.0,1.61855857]
[1748398995344,0.3292322,108680.0,108670.0,1.25775857]
[1748398995547,0.3292322,108680.0,108670.0,1.21681872]
[1748398996949,0.2832468,108680.0,108670.0,1.3386406]
[1748398997156,0.2832468,108680.0,108670.0,1.3710406]
[1748398997543,0.2832468,108680.0,108670.0,1.4022406]
[1748399001650,0.2832468,108680.0,108670.0,1.29399362]
[1748399001858,0.2832468,108680.0,108670.0,0.54476142]
[1748399002058,0.2832468,108680.0,108670.0,1.23047382]
[1748399002362,0.2832468,108680.0,108670.0,0.79943382]
[1748399002566,0.2832468,108680.0,108670.0,1.23051382]
[1748399004459,1.12229378,108680.0,108670.0,0.17149064]
[1748399004855,1.12229378,108680.0,108670.0,0.17137064]
[1748399005056,1.12229378,108680.0,108670.0,0.17149064]
[1748399005458,0.2832468,108680.0,108670.0,0.35544304]
[1748399005855,0.9440468,108680.0,108670.0,0.35544304]
[1748399007970,0.5832468,108680.0,108670.0,0.35544304]
[1748399008463,0.9440468,108680.0,108670.0,0.17149064]
[1748399008768,1.09229378,108680.0,108670.0,0.17149064]
[1748399009957,1.09229378,108680.0,108670.0,0.17137064]
[1748399010164,1.09229378,108680.0,108670.0,0.17149064]
[1748399010668,1.09229378,108680.0,108670.0,0.11149064]
[1748399011162,1.53401378,108680.0,108670.0,0.11149064]
[1748399011365,1.53401378,108680.0,108670.0,0.11137064]
[1748399011564,1.53401378,108680.0,108670.0,0.11149064]
[1748399014268,1.10229378,108680.0,108670.0,0.11149064]
[1748399014464,0.7540468,108680.0,108670.0,0.29544284]
[1748399014762,0.7540468,108680.0,108670.0,0.13195793]
[1748399014964,1.0140468,108680.0,108670.0,0.13195793]
[1748399015265,1.12229378,108680.0,108670.0,0.13195793]
[1748399016568,1.12229378,108680.0,108670.0,0.13197617]